fUSD/lending_fUSD_20250818
["ID","MTS","AMOUNT","RATE_DAILY","PERIOD"]
[380029876,1755486241849,-300.0,8.34e-05,2]
[380029877,1755486241889,-389.70170884,8.341e-05,2]
[380029878,1755486246395,1000.0,6.6e-07,120]
[380029879,1755486250866,-151.0,8.34e-05,2]
[380029880,1755486255502,1000.0,6.6e-07,120]
[380029881,1755486256054,-70.0,8.34e-05,2]
[380029882,1755486256166,-11.0,8.341e-05,2]
[380029883,1755486262914,-181.90882412,8.341e-05,2]
[380029884,1755486277109,1000.0,6.6e-07,120]
[380029885,1755486285439,-182.55992942,8.34e-05,2]
[380029886,1755486285705,1000.0,6.6e-07,120]
[380029887,1755486295112,1000.0,6.6e-07,120]
[380029888,1755486308207,1000.0,6.6e-07,120]
[380029889,1755486313937,-150.0,8.34e-05,2]
[380029890,1755486317953,1000.0,6.6e-07,120]
[380029891,1755486321206,-150.86,8.34e-05,2]
[380029892,1755486326932,1000.0,6.6e-07,120]
[380029893,1755486329086,-181.28666692,8.34e-05,2]
[380029894,1755486335900,1000.0,6.6e-07,120]
[380029895,1755486335931,-442.64059596,8.34e-05,2]
[380029896,1755486344168,1000.0,6.6e-07,120]
[380029897,1755486345042,-15.76726288,8.34e-05,2]
[380029898,1755486345090,-259.44547424,8.34e-05,2]
[380029899,1755486352966,1000.0,6.6e-07,120]
[380029900,1755486354175,-235.22288572,8.34e-05,2]
[380029901,1755486363229,1000.0,6.6e-07,120]
[380029902,1755486363642,-68.0,8.34e-05,2]
[380029903,1755486363891,-164.0,8.34e-05,2]
[380029904,1755486372347,-300.0,8.34e-05,2]
[380029905,1755486374032,1000.0,6.6e-07,120]
[380029906,1755486379104,-59.45658458,8.34e-05,2]
[380029907,1755486379222,-68.0163883,8.34e-05,2]
[380029909,1755486383424,1000.0,6.6e-07,120]
[380029910,1755486387515,-74.10441542,8.34e-05,2]
[380029911,1755486387558,-51.79116916,8.34e-05,2]
[380029912,1755486391343,1000.0,6.6e-07,120]
[380029913,1755486400917,1000.0,6.6e-07,120]
[380029914,1755486408903,-230.43668208,8.34e-05,2]
[380029915,1755486409680,1000.0,6.6e-07,120]
[380029916,1755486418062,1000.0,6.6e-07,120]
[380029917,1755486418244,-968.56331792,8.34e-05,2]
[380029918,1755486418645,-260.33151226,8.34e-05,2]
[380029919,1755486419135,-77.42033964,8.34e-05,2]
[380029920,1755486426131,-150.0,6.888e-05,2]
[380029921,1755486427104,1000.0,6.6e-07,120]
[380029922,1755486434532,-400.0,6.888e-05,2]
[380029923,1755486435220,1000.0,6.6e-07,120]
[380029924,1755486442167,-170.10128684,6.888e-05,2]
[380029925,1755486446280,1000.0,6.6e-07,120]
[380029926,1755486451635,-19.31128684,6.888e-05,2]
[380029927,1755486453179,-1260.58742632,6.888e-05,2]
[380029928,1755486459546,-323.71794196,6.888e-05,2]
[380029929,1755486465703,1000.0,6.6e-07,120]
[380029930,1755486468309,-160.32236936,6.888e-05,2]
[380029931,1755486474592,1000.0,6.6e-07,120]
[380029932,1755486474616,-167.39296531,6.888e-05,2]
[380029933,1755486482434,-262.92017725,6.888e-05,2]
[380029934,1755486482458,-184.27554612,6.888e-05,2]
[380029935,1755486485207,1000.0,6.6e-07,120]
[380029936,1755486493330,1000.0,6.6e-07,120]
[380029937,1755486503989,1000.0,6.6e-07,120]
[380029944,1755486514501,1000.0,6.6e-07,120]
[380029945,1755486523775,1000.0,6.6e-07,120]
[380029946,1755486532027,1000.0,6.6e-07,120]
[380029947,1755486540539,1000.0,6.6e-07,120]
[380029948,1755486548068,1000.0,6.6e-07,120]
[380029949,1755486556487,1000.0,6.6e-07,120]
[380029950,1755486563239,-250.0,9.071e-05,2]
[380029951,1755486564168,-203.185086,9.173e-05,2]
[380029952,1755486565970,1000.0,6.6e-07,120]
[380029953,1755486575308,1000.0,6.6e-07,120]
[380029954,1755486578178,-69.49502874,9.173e-05,2]
[380029955,1755486578224,-61.00994252,9.173e-05,2]
[380029956,1755486580896,1000.0,6.6e-07,120]
[380029957,1755486587101,-23.91559703,9.173e-05,2]
[380029958,1755486587639,-215.07446045,9.173e-05,2]
[380029959,1755486588071,1000.0,6.6e-07,120]
[380029961,1755486598516,1000.0,6.6e-07,120]
[380029962,1755486606536,1000.0,6.6e-07,120]
[380029963,1755486609860,-118.09117588,9.161e-05,2]
[380029964,1755486610122,-63.81764824,9.161e-05,2]
[380029965,1755486615333,1000.0,6.6e-07,120]
[380029966,1755486617679,-151.0,9.166e-05,2]
[380029967,1755486622842,1000.0,6.6e-07,120]
[380029968,1755486624862,-89.0,9.166e-05,2]
[380029969,1755486631439,1000.0,6.6e-07,120]
[380029976,1755486632154,-250.0,9.175e-05,2]
[380029977,1755486632164,-187.39112875,9.175e-05,2]
[380029978,1755486632173,-250.0,9.273e-05,2]
[380029979,1755486632182,-150.0,9.4e-05,2]
[380029980,1755486632191,-142.84450401,9.442e-05,2]
[380029981,1755486632204,-808.57549599,9.442e-05,2]
[380029983,1755486632214,-242.54,9.516e-05,2]
[380029985,1755486632223,-828.31,9.521e-05,2]
[380029988,1755486632235,-242.54,9.521e-05,2]
[380029991,1755486632245,-242.54,9.526e-05,2]
[380029994,1755486632254,-242.54,9.531e-05,2]
[380029997,1755486632264,-799.0,9.531e-05,2]
[380029999,1755486632274,-242.54,9.536e-05,2]
[380030001,1755486632284,-300.0,9.537e-05,2]
[380030002,1755486632292,-497.69450391,9.537e-05,2]
[380030003,1755486632304,-702.30549609,9.537e-05,2]
[380030004,1755486632312,-1000.0,9.538e-05,2]
[380030005,1755486632323,-1900.0,9.538e-05,2]
[380030006,1755486632332,-2277.69450391,9.538e-05,2]
[380030007,1755486632343,-722.30549609,9.538e-05,2]
[380030008,1755486632352,-242.54,9.541e-05,2]
[380030010,1755486632361,-242.54,9.546e-05,2]
[380030012,1755486632371,-242.54,9.551e-05,2]
[380030013,1755486632380,-242.54,9.556e-05,2]
[380030014,1755486632388,-107.53450391,9.561e-05,2]
[380030015,1755486632399,-135.00549609,9.561e-05,2]
[380030016,1755486632409,-242.54,9.566e-05,2]
[380030017,1755486632418,-242.54,9.571e-05,2]
[380030018,1755486632427,-242.54,9.576e-05,2]
[380030019,1755486632436,-242.54,9.581e-05,2]
[380030020,1755486632445,-194.83450391,9.586e-05,2]
[380030021,1755486632912,-47.70549609,9.586e-05,2]
[380030022,1755486632922,-187.39112875,9.588e-05,2]
[380030023,1755486632931,-242.54,9.591e-05,2]
[380030024,1755486632940,-242.54,9.596e-05,2]
[380030025,1755486632951,-242.54,9.601e-05,2]
[380030026,1755486632960,-242.54,9.606e-05,2]
[380030027,1755486632969,-242.54,9.611e-05,2]
[380030028,1755486632980,-1000.0,9.615e-05,2]
[380030029,1755486632993,-165.98,9.622e-05,2]
[380030030,1755486633004,-849.0,9.709e-05,2]
[380030031,1755486633014,-343.96,9.714e-05,2]
[380030032,1755486633026,-328.28,9.715e-05,2]
[380030033,1755486633036,-429.0,9.72e-05,2]
[380030034,1755486633047,-1409.16317011,9.729e-05,2]
[380030035,1755486633058,-847.5761489,9.729e-05,2]
[380030036,1755486633070,-96.25185713,9.758e-05,2]
[380030037,1755486633083,-618.74814287,9.758e-05,2]
[380030038,1755486633094,-76.2591,9.8e-05,2]
[380030039,1755486633104,-250.0,9.816e-05,2]
[380030040,1755486633114,-170.0,9.836e-05,7]
[380030041,1755486633124,-437.46184939,9.89e-05,2]
[380030042,1755486633136,-63.53815061,9.89e-05,2]
[380030043,1755486633146,-364.38406836,9.9e-05,2]
[380030044,1755486633172,-468.91119907,9.9e-05,2]
[380030045,1755486633183,-287.8619546,9.9e-05,2]
[380030046,1755486633234,-305.76867858,9.9e-05,2]
[380030047,1755486633244,-1000.0,9.9e-05,2]
[380030048,1755486633253,-164.18496286,9.9e-05,2]
[380030049,1755486633263,-150.0,9.999e-05,2]
[380030050,1755486633272,-2652.9449152,0.0001,2]
[380030051,1755486633284,-465.84208174,0.0001,2]
[380030052,1755486633327,-3186.26071468,0.0001,2]
[380030053,1755486633339,-3413.6016512,0.0001,2]
[380030055,1755486637844,-825.193057,0.0001,2]
[380030056,1755486637855,-283.266,0.0001,2]
[380030057,1755486637899,-393.69097478,0.0001,2]
[380030058,1755486637911,-2452.98764009,0.0001,2]
[380030059,1755486637922,-282.23840945,0.0001,2]
[380030060,1755486637934,-865.69,0.0001,2]
[380030061,1755486637945,-948.74718367,0.0001,2]
[380030062,1755486638034,-330.16621365,0.0001,2]
[380030063,1755486638198,-301.538417,0.0001,2]
[380030064,1755486638209,-7459.99265764,0.0001,2]
[380030065,1755486638221,-940.97832574,0.0001,2]
[380030066,1755486638234,-11561.0,0.0001,2]
[380030067,1755486638245,-2450.01510591,0.0001,2]
[380030068,1755486638256,-2312.2,0.0001,2]
[380030069,1755486638267,-2316.7144,0.0001,2]
[380030070,1755486638350,-0.36982851,0.0001,2]
[380030071,1755486638360,-301.0,0.0001,2]
[380030072,1755486638369,-500.0,0.0001,2]
[380030073,1755486638379,-500.0,0.0001,2]
[380030075,1755486638388,-500.0,0.0001,2]
[380030077,1755486638398,-500.0,0.0001,2]
[380030079,1755486638407,-500.0,0.0001,2]
[380030080,1755486638416,-200.0,0.0001,2]
[380030081,1755486638425,-500.0,0.0001,2]
[380030083,1755486638435,-500.0,0.0001,2]
[380030085,1755486638444,-500.0,0.0001,2]
[380030087,1755486638453,-500.0,0.0001,2]
[380030088,1755486638462,-500.0,0.0001,2]
[380030090,1755486638471,-500.0,0.0001,2]
[380030092,1755486638480,-500.0,0.0001,2]
[380030094,1755486638490,-500.0,0.0001,2]
[380030096,1755486638499,-500.0,0.0001,2]
[380030098,1755486638508,-500.0,0.0001,2]
[380030100,1755486638518,-151.0,0.0001,2]
[380030102,1755486638527,-912.12921336,0.0001,2]
[380030104,1755486638537,-500.0,0.0001,2]
[380030106,1755486638546,-500.0,0.0001,2]
[380030108,1755486638555,-500.0,0.0001,2]
[380030110,1755486638565,-339.58068367,0.0001,2]
[380030112,1755486638574,-151.0,0.0001,2]
[380030114,1755486638583,-187.39112875,0.0001,2]
[380030116,1755486638593,-500.0,0.00010055,2]
[380030118,1755486638602,-420.0,0.0001009,2]
[380030120,1755486638611,-250.0,0.00010091,2]
[380030122,1755486638620,-700.0,0.000101,3]
[380030124,1755486638630,-500.0,0.0001011,2]
[380030126,1755486638639,-500.0,0.00010165,2]
[380030128,1755486638648,-500.0,0.00010192,2]
[380030130,1755486638657,-1500.0,0.000102,3]
[380030132,1755486638667,-500.0,0.0001022,2]
[380030134,1755486638676,-500.0,0.00010275,2]
[380030136,1755486638685,-2300.0,0.000103,3]
[380030138,1755486638695,-314.70945577,0.0001032,2]
[380030140,1755486638705,-256.0,0.0001032,2]
[380030142,1755486638714,-500.0,0.0001033,2]
[380030144,1755486638723,-500.0,0.00010385,2]
[380030146,1755486638734,-3100.0,0.000104,3]
[380030148,1755486638744,-500.0,0.0001044,2]
[380030150,1755486638753,-420.0,0.00010491,2]
[380030152,1755486638762,-1680.0,0.00010491,2]
[380030155,1755486638771,-500.0,0.00010495,2]
[380030156,1755486638780,-3900.0,0.000105,3]
[380030159,1755486638790,-151.0,0.00010548,2]
[380030161,1755486638799,-500.0,0.0001055,2]
[380030163,1755486638808,-150.0,0.0001058,2]
[380030165,1755486638818,-165.98,0.00010584,2]
[380030167,1755486638828,-700.0,0.000106,3]
[380030169,1755486638837,-744.6009,0.00010603,2]
[380030171,1755486638846,-500.0,0.00010605,2]
[380030173,1755486638856,-500.0,0.00010619,2]
[380030175,1755486638865,-500.0,0.00010619,2]
[380030177,1755486638875,-500.0,0.0001066,2]
[380030179,1755486638884,-700.0,0.000107,3]
[380030181,1755486638894,-500.0,0.00010715,2]
[380030183,1755486638903,-500.0,0.000108,3]
[380030185,1755486638913,-460.0,0.000108,3]
[380030187,1755486638922,-150.86263942,0.000108,3]
[380030189,1755486638932,-500.0,0.000108,3]
[380030191,1755486638942,-150.0,0.000108,3]
[380030193,1755486638952,-500.0,0.000108,3]
[380030195,1755486638961,-700.0,0.000108,3]
[380030197,1755486638970,-500.0,0.000108,3]
[380030199,1755486638980,-150.0,0.000108,2]
[380030201,1755486638989,-500.0,0.000108,3]
[380030203,1755486638999,-150.0,0.000108,2]
[380030205,1755486639008,-1145.0,0.000108,3]
[380030207,1755486639017,-617.0,0.000108,3]
[380030209,1755486639026,-1000.0,0.00010817,2]
[380030211,1755486639036,-323.133,0.00010859,2]
[380030213,1755486639045,-2500.0,0.00010859,2]
[380030215,1755486639054,-564.94308403,0.00010873,2]
[380030217,1755486639063,-564.94308402,0.00010887,2]
[380030219,1755486639072,-792.0,0.00010889,2]
[380030221,1755486639082,-500.0,0.00010889,2]
[380030223,1755486639091,-276.67112621,0.00010889,2]
[380030225,1755486639101,-3948.0,0.00010889,2]
[380030227,1755486639110,-500.0,0.00010889,2]
[380030229,1755486639120,-246.59253519,0.00010889,2]
[380030231,1755486639130,-150.0,0.00010889,2]
[380030233,1755486639139,-500.0,0.00010889,2]
[380030235,1755486639150,-500.0,0.00010889,2]
[380030237,1755486639164,-150.0,0.00010889,2]
[380030239,1755486639174,-500.0,0.00010889,2]
[380030241,1755486639182,-150.0,0.00010889,2]
[380030243,1755486639192,-150.0,0.00010889,2]
[380030245,1755486639202,-500.0,0.00010889,2]
[380030247,1755486639213,-7000.0,0.0001089,2]
[380030249,1755486639222,-500.0,0.00010893,2]
[380030251,1755486639233,-500.0,0.00010893,2]
[380030253,1755486639242,-150.0,0.00010893,2]
[380030255,1755486639251,-500.0,0.00010893,2]
[380030257,1755486639261,-150.0,0.00010893,2]
[380030259,1755486639272,-500.0,0.00010893,2]
[380030261,1755486639281,-500.0,0.00010893,2]
[380030263,1755486639290,-500.0,0.00010893,2]
[380030265,1755486639299,-150.0,0.00010893,2]
[380030267,1755486639308,-150.0,0.00010893,2]
[380030269,1755486639318,-151.015736,0.00010893,2]
[380030271,1755486639327,-150.0,0.00010893,2]
[380030273,1755486639337,-206.1224292,0.00010893,2]
[380030275,1755486639346,-500.0,0.00010893,2]
[380030277,1755486639355,-150.0,0.00010893,2]
[380030279,1755486639365,-150.0,0.00010893,2]
[380030281,1755486639374,-500.0,0.00010893,2]
[380030283,1755486639384,-150.0,0.00010893,2]
[380030285,1755486639393,-150.0,0.00010893,2]
[380030287,1755486639402,-150.0,0.00010893,2]
[380030289,1755486639411,-500.0,0.00010893,2]
[380030290,1755486639421,-150.0,0.00010893,2]
[380030291,1755486639430,-11170.85889697,0.000109,2]
[380030292,1755486639439,-635.71008077,0.000109,2]
[380030293,1755486639448,-1251.40943873,0.000109,2]
[380030294,1755486639457,-6654.4074,0.000109,2]
[380030295,1755486639467,-21357.66726122,0.000109,2]
[380030296,1755486639476,-564.94308402,0.000109,2]
[380030297,1755486639485,-7000.0,0.000109,2]
[380030298,1755486639494,-2387.99374427,0.000109,2]
[380030299,1755486639503,-700.0,0.000109,3]
[380030300,1755486639513,-429.75174749,0.000109,2]
[380030301,1755486639521,-429.75174743,0.000109,2]
[380030302,1755486639531,-429.75174743,0.000109,2]
[380030303,1755486639540,-429.75174743,0.000109,2]
[380030305,1755486639550,-429.75174743,0.000109,2]
[380030306,1755486639559,-429.75174743,0.000109,2]
[380030309,1755486639571,-429.75174743,0.000109,2]
[380030311,1755486639582,-429.75174743,0.000109,2]
[380030313,1755486639591,-3981.73739307,0.000109,2]
[380030315,1755486639601,-1000.0,0.00010908,2]
[380030317,1755486639610,-1900.0,0.00010908,2]
[380030319,1755486639619,-3000.0,0.00010908,2]
[380030321,1755486639629,-7000.0,0.0001092,2]
[380030322,1755486639641,-343.0,0.00010959,2]
[380030324,1755486639651,-150.0,0.00010959,2]
[380030327,1755486639660,-150.0,0.00010959,2]
[380030328,1755486639670,-4925.83,0.00010959,2]
[380030330,1755486639679,-28078.0,0.00010959,2]
[380030332,1755486639687,-7000.0,0.0001096,2]
[380030334,1755486639696,-500.0,0.00010973,2]
[380030336,1755486639706,-501.63134813,0.00010973,2]
[380030338,1755486639715,-150.72577644,0.00010973,2]
[380030340,1755486639725,-500.0,0.00010973,2]
[380030342,1755486639734,-500.06107947,0.00010973,2]
[380030345,1755486639744,-500.0,0.00010973,2]
[380030347,1755486639754,-500.0,0.00010973,2]
[380030349,1755486639763,-500.0,0.00010973,2]
[380030351,1755486639772,-629.80551833,0.00010973,2]
[380030353,1755486639782,-501.3536025,0.00010973,2]
[380030355,1755486639791,-500.0,0.00010973,2]
[380030357,1755486639800,-500.0,0.00010973,2]
[380030359,1755486639809,-500.0,0.00010973,2]
[380030361,1755486639818,-500.0,0.00010973,2]
[380030363,1755486639828,-500.0,0.00010973,2]
[380030365,1755486639837,-500.0,0.00010973,2]
[380030367,1755486639846,-500.0,0.00010973,2]
[380030369,1755486639855,-489.73005226,0.00010973,2]
[380030371,1755486639864,-500.0,0.00010973,2]
[380030373,1755486639874,-500.0,0.00010973,2]
[380030375,1755486639882,-510.13897176,0.00010973,2]
[380030377,1755486639891,-500.0,0.00010973,2]
[380030379,1755486639901,-500.0,0.00010973,2]
[380030382,1755486639911,-500.0,0.00010973,2]
[380030384,1755486639920,-500.0,0.00010973,2]
[380030386,1755486639930,-500.0,0.00010973,2]
[380030388,1755486639939,-495.57974681,0.00010973,2]
[380030390,1755486639948,-500.0,0.00010973,2]
[380030392,1755486639958,-172.63172576,0.00010973,2]
[380030394,1755486639967,-294.91110892,0.00010973,2]
[380030396,1755486639976,-518.11592461,0.00010973,2]
[380030398,1755486639986,-4000.0,0.00010986,2]
[380030400,1755486639997,-151.31924293,0.00010989,2]
[380030403,1755486640007,-500.0,0.00010989,2]
[380030405,1755486640017,-200.0,0.0001099,2]
[380030407,1755486640027,-23633.52937217,0.0001099,2]
[380030409,1755486640036,-7000.0,0.0001099,2]
[380030411,1755486640045,-950.69897856,0.0001099,2]
[380030413,1755486640055,-950.69897856,0.0001099,2]
[380030415,1755486640065,-950.69897856,0.0001099,2]
[380030417,1755486640075,-15693.0903422,0.00010996,2]
[380030419,1755486640084,-545.7518219,0.00010996,2]
[380030452,1755486640429,-1000.0,0.00010999,2]
[380030454,1755486640439,-150.0,0.00010999,2]
[380030456,1755486640449,-1000.0,0.00010999,2]
[380030458,1755486640458,-1000.0,0.00010999,2]
[380030460,1755486640467,-194.58055401,0.00010999,3]
[380030462,1755486640477,-1211.66251023,0.00010999,3]
[380030464,1755486640487,-31319.67134243,0.00010999,2]
[380030466,1755486640496,-2278.52,0.00010999,2]
[380030468,1755486640506,-2278.52,0.00010999,2]
[380030470,1755486640515,-2278.52,0.00010999,2]
[380030472,1755486640524,-2278.52,0.00010999,2]
[380030474,1755486640534,-2278.52,0.00010999,2]
[380030476,1755486640543,-2278.52,0.00010999,2]
[380030478,1755486640552,-2278.52,0.00010999,2]
[380030480,1755486640561,-2278.52,0.00010999,2]
[380030482,1755486640570,-2278.52,0.00010999,2]
[380030484,1755486640580,-2278.52,0.00010999,2]
[380030486,1755486640589,-2278.52,0.00010999,2]
[380030488,1755486640598,-2278.52,0.00010999,2]
[380030490,1755486640608,-2278.52,0.00010999,2]
[380030492,1755486640617,-2278.52,0.00010999,2]
[380030494,1755486640627,-2278.52,0.00010999,2]
[380030496,1755486640637,-2278.52,0.00010999,2]
[380030498,1755486640646,-2278.52,0.00010999,2]
[380030500,1755486640656,-2278.52,0.00010999,2]
[380030502,1755486640665,-2278.52,0.00010999,2]
[380030504,1755486640675,-2278.52,0.00010999,2]
[380030506,1755486640685,-2278.52,0.00010999,2]
[380030508,1755486640702,-2278.52,0.00010999,2]
[380030510,1755486640711,-2278.52,0.00010999,2]
[380030512,1755486640720,-2278.52536992,0.00010999,2]
[380030514,1755486640729,-255.0,0.00010999,2]
[380030516,1755486640738,-150.0,0.00010999,2]
[380030518,1755486640747,-150.0,0.00010999,2]
[380030520,1755486640757,-150.0,0.00010999,2]
[380030522,1755486640766,-150.0,0.00010999,2]
[380030524,1755486640775,-150.0,0.00010999,2]
[380030526,1755486640784,-150.0,0.00010999,2]
[380030528,1755486640793,-150.0,0.00010999,2]
[380030530,1755486640803,-4367550.60735445,0.00011,2]
[380030532,1755486640812,-16322013.04482481,0.00011,2]
[380030728,1755486643654,-190.87608032,9.441e-05,2]
[380030729,1755486643664,-767.31951932,0.000109,2]
[380030730,1755486643674,-3399.80922923,0.00011,2]
[380030731,1755486643687,-570.62561346,0.00011,2]
[380030732,1755486643702,-26481.53359503,0.00011,2]
[380030733,1755486643776,1000.0,6.6e-07,120]
[380030734,1755486643796,-502.45911829,0.00011,2]
[380030735,1755486643810,-2320.0,0.00011,2]
[380030736,1755486644170,-112.65938382,0.00011,2]
[380030792,1755486646975,-52014.86049348,0.00011,2]
[380030793,1755486646990,-11642.68294799,0.00011,2]
[380030794,1755486647564,-981.7243584,0.00011,2]
[380030795,1755486647579,-102826.7101098,0.00011,2]
[380030796,1755486648120,-203.15,9.674e-05,2]
[380030797,1755486648132,-1097.55,0.00011,2]
[380030798,1755486650422,-7014.81526434,0.00011,2]
[380030799,1755486650590,-662.20198769,0.00011,2]
[380030800,1755486650603,-388.41629556,0.00011,2]
[380030801,1755486650641,-444856.86652279,0.00011,2]
[380030802,1755486650652,-23130.0,0.00011,2]
[380030803,1755486650663,-601.335984,0.00011,2]
[380030804,1755486650679,-4715.50000001,0.00011,2]
[380030805,1755486650691,-1737.858795,0.00011,2]
[380030806,1755486654933,1000.0,6.6e-07,120]
[380030807,1755486658000,318.30350654,9.399e-05,2]
[380030808,1755486660399,1000.0,6.6e-07,120]
[380030809,1755486687652,1000.0,6.6e-07,120]
[380030810,1755486695034,1000.0,6.6e-07,120]
[380030811,1755486700304,-152.36,9.89e-05,2]
[380030812,1755486704485,1000.0,6.6e-07,120]
[380030813,1755486714740,1000.0,6.6e-07,120]
[380030814,1755486725499,1000.0,6.6e-07,120]
[380030815,1755486730039,-11.44273487,9.89e-05,2]
[380030816,1755486730061,-129.47453026,9.89e-05,2]
[380030817,1755486733810,1000.0,6.6e-07,120]
[380030818,1755486740545,1000.0,6.6e-07,120]
[380030819,1755486750429,1000.0,6.6e-07,120]
[380030820,1755486759337,1000.0,6.6e-07,120]
[380030821,1755486762481,-150.0,9.895e-05,2]
[380030822,1755486768264,1000.0,6.6e-07,120]
[380030823,1755486769734,-50.0,9.895e-05,2]
[380030824,1755486769764,-50.0,9.895e-05,2]
[380030825,1755486778637,1000.0,6.6e-07,120]
[380030826,1755486789935,1000.0,6.6e-07,120]
[380030827,1755486798400,1000.0,6.6e-07,120]
[380030828,1755486805192,1000.0,6.6e-07,120]
[380030829,1755486812224,-150.0,9.979e-05,2]
[380030830,1755486812495,1000.0,6.6e-07,120]
[380030832,1755486820972,-100.0,9.979e-05,2]
[380030833,1755486821600,1000.0,6.6e-07,120]
[380030834,1755486821722,-100.0,9.999e-05,2]
[380030835,1755486827388,-9.59863256,9.516e-05,2]
[380030836,1755486827420,-140.40136744,9.516e-05,2]
[380030837,1755486830467,1000.0,6.6e-07,120]
[380030838,1755486834519,-150.0,9.581e-05,2]
[380030839,1755486840009,1000.0,6.6e-07,120]
[380030840,1755486843369,-150.0,9.8e-05,2]
[380030841,1755486847556,1000.0,6.6e-07,120]
[380030842,1755486849587,-134.32046405,9.888e-05,2]
[380030843,1755486849612,-15.67953595,9.888e-05,2]
[380030844,1755486857470,472.0,6.6e-07,120]
[380030845,1755486857584,-15.5085914,9.898e-05,2]
[380030846,1755486857619,-134.4914086,9.898e-05,2]
[380030847,1755486866610,-100.0,9.899e-05,2]
[380030848,1755486867462,-50.0,9.899e-05,2]
[380030849,1755486874412,-150.64468179,9.989e-05,2]
[380030850,1755486897757,-99.35531821,9.989e-05,2]
[380030851,1755486897786,-156.39383003,0.00010083,2]
[380030852,1755486897815,-18.72239653,0.00010083,2]
[380030853,1755486897886,-281.27760347,0.00010083,2]
[380030854,1755486905276,-300.0,0.00010083,2]
[380030855,1755486905375,-259.86574198,0.00010083,2]
[380030856,1755486929824,151.0,6.6e-07,120]
[380030857,1755486930405,151.0,6.6e-07,120]
[380030858,1755486940545,-165.74211738,0.00010032,2]
[380030859,1755486954756,-152.08,0.00010032,2]
[380030860,1755486961924,500.0,6.6e-07,120]
[380030861,1755486969626,500.0,6.6e-07,120]
[380030862,1755486979962,-152.08,0.00010032,2]
[380030863,1755486984742,500.0,6.6e-07,120]
[380030864,1755486993991,500.0,6.6e-07,120]
[380030865,1755487002791,500.0,6.6e-07,120]
[380030866,1755487009080,500.0,6.6e-07,120]
[380030867,1755487016652,-150.0,0.00010032,2]
[380030868,1755487017399,500.0,6.6e-07,120]
[380030869,1755487024481,-85.1128342,0.00010032,2]
[380030870,1755487025265,-85.91504842,0.00010032,2]
[380030871,1755487026198,500.0,6.6e-07,120]
[380030872,1755487035493,500.0,6.6e-07,120]
[380030873,1755487047313,500.0,6.6e-07,120]
[380030874,1755487055319,500.0,6.6e-07,120]
[380030875,1755487064835,500.0,6.6e-07,120]
[380030876,1755487066765,-357.86029972,0.00010082,2]
[380030877,1755487074303,500.0,6.6e-07,120]
[380030878,1755487082069,500.0,6.6e-07,120]
[380030879,1755487088602,500.0,6.6e-07,120]
[380030880,1755487097002,500.0,6.6e-07,120]
[380030882,1755487117438,170.84694034,9.851e-05,2]
[380030886,1755487155649,-256.51742562,9.851e-05,2]
[380030887,1755487192409,-445.06,9.851e-05,2]
[380030888,1755487206027,-44.49124464,9.851e-05,2]
[380030889,1755487206066,-83.0843894,9.851e-05,2]
[380030891,1755487220605,-25.46,9.997e-05,2]
[380030892,1755487220647,-152.02,9.997e-05,2]
[380030893,1755487253588,500.0,6.6e-07,120]
[380030894,1755487259580,-152.36,9.538e-05,2]
[380030895,1755487260271,500.0,6.6e-07,120]
[380030896,1755487266327,-250.0,9.538e-05,2]
[380030897,1755487266984,500.0,6.6e-07,120]
[380030898,1755487274759,500.0,6.6e-07,120]